fUSD/lending_fUSD_20260606
["ID","MTS","AMOUNT","RATE_DAILY","PERIOD"]
[424296741,1780755066000,-301.26095747,0.00034816,2]
[424296743,1780755066000,-300.0,0.00034816,2]
[424296742,1780755066000,-300.0,0.00034816,2]
[424296745,1780755066000,-528.34886838,0.00034816,2]
[424296747,1780755066000,-951.63328238,0.00034816,2]
[424296746,1780755066000,-866.7779036,0.00034816,2]
[424296744,1780755066000,-344.90343841,0.00034816,2]
[424296749,1780755066000,-300.0,0.00034816,2]
[424296748,1780755066000,-1802.22521058,0.00034816,2]
[424296753,1780755066000,-1343.44679808,0.00034816,2]
[424296750,1780755066000,-1000.23409762,0.00034816,2]
[424296756,1780755066000,-595.62173546,0.00034816,2]
[424296758,1780755066000,-512.68985396,0.00034816,2]
[424296755,1780755066000,-300.0,0.00034816,2]
[424296757,1780755066000,-300.0,0.00034816,2]
[424296754,1780755066000,-300.0,0.00034816,2]
[424296752,1780755066000,-300.0,0.00034816,2]
[424296759,1780755066000,-582.46305007,0.00034816,2]
[424296762,1780755066000,-300.0,0.00034816,2]
[424296761,1780755066000,-300.0,0.00034816,2]
[424296760,1780755066000,-300.0,0.00034816,2]
[424296765,1780755066000,-444.97656654,0.00034816,2]
[424296763,1780755066000,-300.0,0.00034816,2]
[424296767,1780755066000,-300.0,0.00034816,2]
[424296764,1780755066000,-300.0,0.00034816,2]
[424296766,1780755066000,-300.0,0.00034816,2]
[424296706,1780755066000,-300.0,0.00034816,2]
[424296740,1780755066000,-300.41626562,0.00034816,2]
[424296739,1780755066000,-302.62874208,0.00034816,2]
[424296751,1780755066000,-310.46403505,0.00034816,2]
[424296737,1780755066000,-535.48528261,0.00034816,2]
[424296738,1780755066000,-300.0,0.00034816,2]
[424296712,1780755066000,-595.62173546,0.00034816,2]
[424296715,1780755066000,-582.46305007,0.00034816,2]
[424296714,1780755066000,-512.68985396,0.00034816,2]
[424296716,1780755066000,-453.15702828,0.00034816,2]
[424296718,1780755066000,-300.0,0.00034816,2]
[424296720,1780755066000,-444.97656654,0.00034816,2]
[424296717,1780755066000,-555.69564861,0.00034816,2]
[424296719,1780755066000,-300.0,0.00034816,2]
[424296713,1780755066000,-300.0,0.00034816,2]
[424296721,1780755066000,-300.0,0.00034816,2]
[424296723,1780755066000,-300.0,0.00034816,2]
[424296722,1780755066000,-300.0,0.00034816,2]
[424296707,1780755066000,-310.46403505,0.00034816,2]
[424296731,1780755066000,-300.0,0.00034816,2]
[424296725,1780755066000,-300.0,0.00034816,2]
[424296729,1780755066000,-300.0,0.00034816,2]
[424296728,1780755066000,-301.12058868,0.00034816,2]
[424296730,1780755066000,-300.0,0.00034816,2]
[424296726,1780755066000,-300.0,0.00034816,2]
[424296724,1780755066000,-1097.93775232,0.00034816,2]
[424296727,1780755066000,-300.0,0.00034816,2]
[424296735,1780755066000,-300.0,0.00034816,2]
[424296734,1780755066000,-300.0,0.00034816,2]
[424296732,1780755066000,-494.04522563,0.00034816,2]
[424296733,1780755066000,-300.0,0.00034816,2]
[424296736,1780755066000,-3206.81123318,0.00034816,2]
[424296802,1780755067000,-500.0,0.00034838,2]
[424296803,1780755067000,-853.02,0.00034838,2]
[424296801,1780755067000,-500.0,0.00034838,2]
[424296798,1780755067000,-529.52,0.00034838,2]
[424296799,1780755067000,-500.0,0.00034838,2]
[424296797,1780755067000,-500.0,0.00034838,2]
[424296809,1780755067000,-500.0,0.00034838,2]
[424296808,1780755067000,-739.06,0.00034838,2]
[424296807,1780755067000,-150.0,0.00034838,30]
[424296810,1780755067000,-608.59,0.00034838,2]
[424296806,1780755067000,-832.28,0.00034838,2]
[424296800,1780755067000,-500.0,0.00034838,2]
[424296812,1780755067000,-500.0,0.00034838,2]
[424296819,1780755067000,-500.0,0.00034838,2]
[424296811,1780755067000,-500.0,0.00034838,2]
[424296816,1780755067000,-500.0,0.00034838,2]
[424296820,1780755067000,-500.0,0.00034838,2]
[424296814,1780755067000,-500.0,0.00034838,2]
[424296817,1780755067000,-500.0,0.00034838,2]
[424296818,1780755067000,-500.0,0.00034838,2]
[424296815,1780755067000,-500.0,0.00034838,2]
[424296821,1780755067000,-580.28,0.00034838,2]
[424296823,1780755067000,-25000.0,0.00034841,10]
[424296822,1780755067000,-807.95,0.00034838,2]
[424296825,1780755067000,-325.18908317,0.00034855,14]
[424296826,1780755067000,-25000.0,0.00034859,10]
[424296804,1780755067000,-500.0,0.00034838,2]
[424296813,1780755067000,-500.0,0.00034838,2]
[424296805,1780755067000,-500.0,0.00034838,2]
[424296770,1780755067000,-300.0,0.00034816,2]
[424296793,1780755067000,-25000.0,0.00034833,10]
[424296828,1780755067000,-151.0,0.00034866,7]
[424296771,1780755067000,-300.0,0.00034816,2]
[424296769,1780755067000,-300.0,0.00034816,2]
[424296768,1780755067000,-300.0,0.00034816,2]
[424296773,1780755067000,-25000.0,0.00034824,10]
[424296774,1780755067000,-744.0373035,0.00034825,60]
[424296772,1780755067000,-3162.15,0.00034821,120]
[424296783,1780755067000,-790.0818507,0.00034825,60]
[424296777,1780755067000,-500.0,0.00034825,60]
[424296775,1780755067000,-987.0633314,0.00034825,60]
[424296780,1780755067000,-932.05429,0.00034825,60]
[424296781,1780755067000,-500.0,0.00034825,60]
[424296778,1780755067000,-500.0,0.00034825,60]
[424296779,1780755067000,-980.8787157,0.00034825,60]
[424296782,1780755067000,-500.0,0.00034825,60]
[424296776,1780755067000,-153.0994486,0.00034825,60]
[424296785,1780755067000,-164.762322,0.00034825,60]
[424296787,1780755067000,-500.0,0.00034825,60]
[424296796,1780755067000,-356.99466055,0.00034838,14]
[424296795,1780755067000,-356.0,0.00034838,14]
[424296786,1780755067000,-554.4033122,0.00034825,60]
[424296784,1780755067000,-357.1257385,0.00034825,60]
[424296789,1780755067000,-890.4991091,0.00034825,60]
[424296788,1780755067000,-500.0,0.00034825,60]
[424296790,1780755067000,-696.6957905,0.00034825,60]
[424296792,1780755067000,-184.13952808,0.00034831,7]
[424296791,1780755067000,-736.55811226,0.00034831,7]
[424296794,1780755067000,-454.0,0.00034835,5]
[424296824,1780755067000,-25000.0,0.0003485,10]
[424296876,1780755067000,-2532.201305,0.000349,7]
[424296830,1780755067000,-25000.0,0.00034868,10]
[424296869,1780755067000,-617.346821,0.000349,7]
[424296860,1780755067000,-324.3369,0.000349,7]
[424296861,1780755067000,-926.031354,0.000349,7]
[424296862,1780755067000,-194.712125,0.000349,7]
[424296866,1780755067000,-926.031354,0.000349,7]
[424296867,1780755067000,-926.031354,0.000349,7]
[424296864,1780755067000,-926.031354,0.000349,7]
[424296863,1780755067000,-324.3369,0.000349,7]
[424296865,1780755067000,-194.712125,0.000349,7]
[424296872,1780755067000,-1094.222631,0.000349,7]
[424296881,1780755067000,-151.0,0.000349,7]
[424296874,1780755067000,-1094.222631,0.000349,7]
[424296877,1780755067000,-2532.201305,0.000349,7]
[424296873,1780755067000,-617.346821,0.000349,7]
[424296871,1780755067000,-617.346821,0.000349,7]
[424296878,1780755067000,-2532.201305,0.000349,7]
[424296879,1780755067000,-2532.201305,0.000349,7]
[424296880,1780755067000,-151.0,0.000349,7]
[424296875,1780755067000,-617.346821,0.000349,7]
[424296882,1780755067000,-151.0,0.000349,7]
[424296883,1780755067000,-219.048138,0.000349,7]
[424296885,1780755067000,-152.350853,0.000349,7]
[424296887,1780755067000,-152.350853,0.000349,7]
[424296884,1780755067000,-152.350853,0.000349,7]
[424296888,1780755067000,-4236.104918,0.000349,7]
[424296827,1780755067000,-1227.0,0.00034866,2]
[424296886,1780755067000,-152.350853,0.000349,7]
[424296870,1780755067000,-1094.222631,0.000349,7]
[424296858,1780755067000,-324.3369,0.000349,7]
[424296889,1780755067000,-4236.104918,0.000349,7]
[424296859,1780755067000,-194.712125,0.000349,7]
[424296868,1780755067000,-1094.222631,0.000349,7]
[424296829,1780755067000,-154.054209,0.00034866,7]
[424296832,1780755067000,-150.0,0.00034879,30]
[424296834,1780755067000,-25000.0,0.00034885,10]
[424296844,1780755067000,-2174.826,0.000349,30]
[424296836,1780755067000,-25000.0,0.00034894,10]
[424296835,1780755067000,-193.9,0.00034887,2]
[424296833,1780755067000,-520.2442373,0.0003488,120]
[424296842,1780755067000,-1115.349,0.000349,30]
[424296841,1780755067000,-1000.0,0.000349,120]
[424296839,1780755067000,-7703.09119033,0.000349,31]
[424296838,1780755067000,-151.0,0.00034897,14]
[424296837,1780755067000,-151.0,0.00034897,14]
[424296840,1780755067000,-199837.49858974,0.000349,3]
[424296831,1780755067000,-25000.0,0.00034877,10]
[424296846,1780755067000,-118976.70155461,0.000349,3]
[424296853,1780755067000,-151.0,0.000349,7]
[424296852,1780755067000,-151.0,0.000349,7]
[424296851,1780755067000,-1500.0,0.000349,7]
[424296855,1780755067000,-175.427895,0.000349,7]
[424296849,1780755067000,-151.0,0.000349,7]
[424296843,1780755067000,-2174.826,0.000349,20]
[424296854,1780755067000,-151.0,0.000349,7]
[424296848,1780755067000,-151.0,0.000349,7]
[424296845,1780755067000,-2174.82,0.000349,20]
[424296857,1780755067000,-194.712125,0.000349,7]
[424296847,1780755067000,-739465.94435155,0.000349,3]
[424296856,1780755067000,-324.3369,0.000349,7]
[424296850,1780755067000,-151.0,0.000349,7]
[424296926,1780755068000,-7852.6351,0.00034908,2]
[424296928,1780755068000,-2322.0,0.0003491,11]
[424296925,1780755068000,-2073.1422,0.00034908,2]
[424296924,1780755068000,-2068.8436,0.00034908,2]
[424296929,1780755068000,-264.09198997,0.00034912,2]
[424296923,1780755068000,-151.0,0.00034908,7]
[424296930,1780755068000,-150.0,0.0003492,30]
[424296932,1780755068000,-5000.0,0.00034934,30]
[424296920,1780755068000,-25000.0,0.00034903,10]
[424296931,1780755068000,-210.81204776,0.00034926,7]
[424296922,1780755068000,-151.0,0.00034908,7]
[424296927,1780755068000,-883.16628613,0.0003491,7]
[424296945,1780755068000,-166.67270827,0.00035,30]
[424296944,1780755068000,-4000.0,0.00035,90]
[424296946,1780755068000,-2569.49396955,0.00035,2]
[424296936,1780755068000,-43068.71701735,0.00035,5]
[424296935,1780755068000,-333.74832914,0.00035,30]
[424296934,1780755068000,-800.0,0.00035,7]
[424296938,1780755068000,-2917.07367689,0.00035,120]
[424296940,1780755068000,-2798.94822387,0.00035,10]
[424296937,1780755068000,-42224.35397775,0.00035,4]
[424296939,1780755068000,-227.85863865,0.00035,120]
[424296943,1780755068000,-509.17631543,0.00035,120]
[424296942,1780755068000,-1355.88906785,0.00035,7]
[424296921,1780755068000,-25000.0,0.00034903,10]
[424296941,1780755068000,-526.0,0.00035,5]
[424296933,1780755068000,-150.0,0.00034962,30]
[424296915,1780755068000,-342.548366,0.00034903,7]
[424296900,1780755068000,-192.967881,0.00034903,7]
[424296919,1780755068000,-342.548366,0.00034903,7]
[424296947,1780755068000,-4629.9903708,0.00035,30]
[424296892,1780755068000,-699.951217,0.000349,7]
[424296894,1780755068000,-699.951217,0.000349,7]
[424296890,1780755068000,-4236.104918,0.000349,7]
[424296891,1780755068000,-4236.104918,0.000349,7]
[424296893,1780755068000,-699.951217,0.000349,7]
[424296904,1780755068000,-433.109753,0.00034903,7]
[424296907,1780755068000,-1323.30755,0.00034903,7]
[424296905,1780755068000,-1323.30755,0.00034903,7]
[424296906,1780755068000,-1323.30755,0.00034903,7]
[424296903,1780755068000,-433.109753,0.00034903,7]
[424296896,1780755068000,-1605.67,0.00034903,2]
[424296895,1780755068000,-699.951217,0.000349,7]
[424296898,1780755068000,-192.967881,0.00034903,7]
[424296902,1780755068000,-433.109753,0.00034903,7]
[424296901,1780755068000,-433.109753,0.00034903,7]
[424296899,1780755068000,-192.967881,0.00034903,7]
[424296897,1780755068000,-192.967881,0.00034903,7]
[424296908,1780755068000,-1323.30755,0.00034903,7]
[424296916,1780755068000,-151.0,0.00034903,7]
[424296911,1780755068000,-2129.55451,0.00034903,7]
[424296912,1780755068000,-2129.55451,0.00034903,7]
[424296909,1780755068000,-2129.55451,0.00034903,7]
[424296914,1780755068000,-151.0,0.00034903,7]
[424296910,1780755068000,-2129.55451,0.00034903,7]
[424296917,1780755068000,-342.548366,0.00034903,7]
[424296913,1780755068000,-342.548366,0.00034903,7]
[424296918,1780755068000,-151.0,0.00034903,7]
[424296951,1780755068000,-200755.09270661,0.00035,30]
[424297005,1780755068000,-320.0,0.00035068,37]
[424296955,1780755068000,-349.72604658,0.00035,3]
[424296984,1780755068000,-596.1039232,0.00035,120]
[424296982,1780755068000,-1102.2918016,0.00035,120]
[424296985,1780755068000,-1497.25535455,0.00035,120]
[424296986,1780755068000,-247.82177174,0.00035,60]
[424296983,1780755068000,-167.66704668,0.00035,120]
[424296992,1780755068000,-330.0,0.00035,30]
[424296991,1780755068000,-19458.1633244,0.00035,7]
[424296994,1780755068000,-165.0,0.00035,120]
[424296993,1780755068000,-825.41164425,0.00035,3]
[424296988,1780755068000,-1063.84859915,0.00035,7]
[424296990,1780755068000,-2500.0,0.00035,3]
[424296989,1780755068000,-200.0,0.00035,120]
[424296979,1780755068000,-596.1039232,0.00035,120]
[424296996,1780755068000,-150.0,0.00035003,30]
[424297006,1780755068000,-2068.8436,0.00035083,2]
[424297001,1780755068000,-150.0,0.00035044,30]
[424296997,1780755068000,-4855.5,0.00035025,7]
[424297000,1780755068000,-7852.6351,0.00035033,2]
[424297003,1780755068000,-500.0,0.00035068,2]
[424296998,1780755068000,-350.0,0.00035027,8]
[424297002,1780755068000,-1000.0,0.00035055,45]
[424297004,1780755068000,-320.01,0.00035068,37]
[424297007,1780755068000,-150.0,0.00035085,30]
[424296999,1780755068000,-223.73,0.0003503,30]
[424297008,1780755068000,-506.0,0.000351,120]
[424296948,1780755068000,-6551.2983988,0.00035,2]
[424296995,1780755068000,-5060.0,0.00035,30]
[424296976,1780755068000,-1934.66696622,0.00035,120]
[424296987,1780755068000,-151.0,0.00035,7]
[424296975,1780755068000,-178.00347184,0.00035,120]
[424296974,1780755068000,-215.14473434,0.00035,120]
[424296954,1780755068000,-115000.0,0.00035,80]
[424296956,1780755068000,-4000.0,0.00035,120]
[424296950,1780755068000,-1000.0,0.00035,20]
[424296957,1780755068000,-8000.0,0.00035,120]
[424296952,1780755068000,-500.0,0.00035,10]
[424296953,1780755068000,-150.0,0.00035,4]
[424296959,1780755068000,-102308.95286964,0.00035,15]
[424296961,1780755068000,-1475.42,0.00035,2]
[424296960,1780755068000,-246.75,0.00035,2]
[424296969,1780755068000,-272.0635658,0.00035,120]
[424296958,1780755068000,-500000.0,0.00035,2]
[424296962,1780755068000,-1475.42,0.00035,7]
[424296967,1780755068000,-240.53528541,0.00035,120]
[424296949,1780755068000,-150.44905223,0.00035,7]
[424296980,1780755068000,-374.66965498,0.00035,120]
[424296963,1780755068000,-1475.42,0.00035,3]
[424296978,1780755068000,-409.49034585,0.00035,120]
[424296977,1780755068000,-204.1147621,0.00035,120]
[424296973,1780755068000,-185.82257735,0.00035,120]
[424296970,1780755068000,-274.85515086,0.00035,120]
[424296972,1780755068000,-1166.51690649,0.00035,120]
[424296981,1780755068000,-1982.0770789,0.00035,120]
[424296968,1780755068000,-269.77070607,0.00035,120]
[424296964,1780755068000,-167.8691505,0.00035,120]
[424296965,1780755068000,-261.26021912,0.00035,120]
[424296966,1780755068000,-1455.5170003,0.00035,120]
[424296971,1780755068000,-244.09040236,0.00035,120]
[424297043,1780755069000,-176.604693,0.000352,13]
[424297052,1780755069000,-14184.8,0.00035288,30]
[424297051,1780755069000,-150.0,0.00035285,2]
[424297048,1780755069000,-7852.6351,0.00035282,2]
[424297041,1780755069000,-298.758921,0.000352,13]
[424297039,1780755069000,-164.978258,0.000352,13]
[424297042,1780755069000,-163.241335,0.000352,13]
[424297040,1780755069000,-254.749271,0.000352,13]
[424297045,1780755069000,-201.49499468,0.00035235,2]
[424297037,1780755069000,-164.833764,0.000352,13]
[424297050,1780755069000,-150.0,0.00035285,2]
[424297044,1780755069000,-150.0,0.00035209,30]
[424297049,1780755069000,-150.0,0.00035285,2]
[424297056,1780755069000,-150.0,0.00035332,30]
[424297053,1780755069000,-150.0,0.00035291,30]
[424297058,1780755069000,-1092.0,0.00035339,30]
[424297057,1780755069000,-936.0,0.00035339,30]
[424297055,1780755069000,-400.0,0.00035317,30]
[424297059,1780755069000,-675.0,0.00035339,30]
[424297060,1780755069000,-2972.0,0.00035339,30]
[424297072,1780755069000,-350.0,0.00035369,8]
[424297062,1780755069000,-150.0,0.00035342,2]
[424297071,1780755069000,-204.0,0.0003535,30]
[424297061,1780755069000,-4110.0,0.00035339,30]
[424297063,1780755069000,-300.0,0.00035342,14]
[424297064,1780755069000,-1116.0,0.00035342,30]
[424297054,1780755069000,-210.27258824,0.00035314,14]
[424297038,1780755069000,-293.714665,0.000352,13]
[424297011,1780755069000,-150.0,0.00035126,30]
[424297035,1780755069000,-174.921711,0.000352,13]
[424297009,1780755069000,-1397.17794495,0.00035123,2]
[424297070,1780755069000,-786.0,0.0003535,30]
[424297010,1780755069000,-1245.85634662,0.00035123,2]
[424297012,1780755069000,-200.0,0.00035128,2]
[424297013,1780755069000,-1356.73267512,0.00035128,2]
[424297014,1780755069000,-200.0,0.00035128,2]
[424297015,1780755069000,-200.0,0.00035128,2]
[424297020,1780755069000,-7852.6351,0.00035158,2]
[424297016,1780755069000,-200.0,0.00035128,2]
[424297017,1780755069000,-699.0,0.00035147,10]
[424297018,1780755069000,-152.4757425,0.00035158,7]
[424297019,1780755069000,-152.4757425,0.00035158,14]
[424297021,1780755069000,-150.0,0.00035168,30]
[424297046,1780755069000,-150.0,0.0003525,30]
[424297022,1780755069000,-1204.82288224,0.00035198,2]
[424297032,1780755069000,-2777.60969694,0.00035198,2]
[424297033,1780755069000,-1231.14981691,0.00035198,2]
[424297034,1780755069000,-2322.0,0.00035199,11]
[424297024,1780755069000,-1348.18255508,0.00035198,2]
[424297027,1780755069000,-3373.67427506,0.00035198,2]
[424297026,1780755069000,-1395.14382496,0.00035198,2]
[424297028,1780755069000,-1375.62472267,0.00035198,2]
[424297031,1780755069000,-1891.79541514,0.00035198,2]
[424297025,1780755069000,-1226.69656979,0.00035198,2]
[424297029,1780755069000,-3098.45914754,0.00035198,2]
[424297030,1780755069000,-3145.90278328,0.00035198,2]
[424297036,1780755069000,-451.397818,0.000352,13]
[424297047,1780755069000,-2068.8436,0.00035257,2]
[424297023,1780755069000,-1317.36691339,0.00035198,2]
[424297067,1780755069000,-353.0,0.0003535,30]
[424297066,1780755069000,-333.0,0.0003535,30]
[424297069,1780755069000,-360.0,0.0003535,30]
[424297102,1780755069000,-500.0,0.00035527,14]
[424297110,1780755069000,-150.0,0.00035579,30]
[424297111,1780755069000,-2197.0,0.00035589,120]
[424297107,1780755069000,-500.0,0.00035562,2]
[424297103,1780755069000,-1436.0,0.00035531,5]
[424297105,1780755069000,-150.0,0.00035538,30]
[424297108,1780755069000,-987.0,0.00035562,5]
[424297106,1780755069000,-1202.0,0.00035543,5]
[424297104,1780755069000,-7852.6351,0.00035532,2]
[424297113,1780755069000,-1443.92538862,0.00035589,120]
[424297112,1780755069000,-1443.92538863,0.00035589,120]
[424297124,1780755069000,-617.346821,0.0003561,7]
[424297123,1780755069000,-1094.222631,0.0003561,7]
[424297117,1780755069000,-4520.46810798,0.0003561,2]
[424297116,1780755069000,-152.0,0.00035606,5]
[424297115,1780755069000,-2068.8436,0.00035606,2]
[424297114,1780755069000,-547.0,0.000356,5]
[424297118,1780755069000,-151277.01629543,0.0003561,2]
[424297119,1780755069000,-1094.222631,0.0003561,7]
[424297120,1780755069000,-617.346821,0.0003561,7]
[424297121,1780755069000,-1094.222631,0.0003561,7]
[424297122,1780755069000,-617.346821,0.0003561,7]
[424297125,1780755069000,-1094.222631,0.0003561,7]
[424297127,1780755069000,-2532.201305,0.0003561,7]
[424297068,1780755069000,-1918.0,0.0003535,30]
[424297129,1780755069000,-2532.201305,0.0003561,7]
[424297126,1780755069000,-617.346821,0.0003561,7]
[424297100,1780755069000,-1983.0,0.00035507,5]
[424297109,1780755069000,-350.0,0.00035578,38]
[424297128,1780755069000,-2532.201305,0.0003561,7]
[424297099,1780755069000,-759.0,0.00035506,3]
[424297101,1780755069000,-1628.0,0.00035519,5]
[424297073,1780755069000,-8879.0,0.00035373,5]
[424297084,1780755069000,-223.73,0.0003546,69]
[424297074,1780755069000,-150.0,0.00035373,30]
[424297083,1780755069000,-150.0,0.00035456,30]
[424297085,1780755069000,-2755.0,0.00035464,5]
[424297076,1780755069000,-7294.0,0.00035385,5]
[424297075,1780755069000,-6051.0,0.0003538,5]
[424297080,1780755069000,-2068.8436,0.00035432,2]
[424297078,1780755069000,-7852.6351,0.00035407,2]
[424297079,1780755069000,-150.0,0.00035415,30]
[424297081,1780755069000,-4083.0,0.00035439,5]
[424297082,1780755069000,-3354.0,0.00035452,5]
[424297065,1780755069000,-2510.0,0.0003535,30]
[424297087,1780755069000,-200.0,0.00035479,2]
[424297077,1780755069000,-4971.0,0.00035405,5]
[424297094,1780755069000,-2414.0,0.00035493,5]
[424297092,1780755069000,-164.608879,0.00035486,16]
[424297091,1780755069000,-2938.0,0.00035483,5]
[424297093,1780755069000,-2073.1422,0.0003549,2]
[424297095,1780755069000,-20848.35706845,0.00035493,2]
[424297090,1780755069000,-200.0,0.0003548,2]
[424297098,1780755069000,-300.0,0.000355,28]
[424297088,1780755069000,-200.0,0.00035479,2]
[424297089,1780755069000,-200.0,0.00035479,2]
[424297086,1780755069000,-200.0,0.00035479,2]
[424297097,1780755069000,-16992.64812045,0.000355,30]
[424297096,1780755069000,-150.0,0.00035497,30]
[424297172,1780755070000,-1325.12,0.00035685,120]
[424297175,1780755070000,-686.7976,0.000357,120]
[424297165,1780755070000,-7852.6351,0.00035656,2]
[424297174,1780755070000,-566.76,0.00035685,120]
[424297162,1780755070000,-269.157051,0.00035616,2]
[424297161,1780755070000,-269.157051,0.00035616,2]
[424297160,1780755070000,-269.157051,0.00035616,2]
[424297157,1780755070000,-269.157051,0.00035616,2]
[424297176,1780755070000,-317.6839,0.000357,60]
[424297163,1780755070000,-150.0,0.00035621,30]
[424297158,1780755070000,-269.157051,0.00035616,2]
[424297170,1780755070000,-152.32,0.00035685,120]
[424297173,1780755070000,-2626.19,0.00035685,120]
[424297164,1780755070000,-450.0,0.00035627,5]
[424297169,1780755070000,-979.62,0.00035685,120]
[424297166,1780755070000,-165.34742762,0.00035659,2]
[424297167,1780755070000,-150.0,0.00035662,30]
[424297177,1780755070000,-347.1322,0.000357,120]
[424297178,1780755070000,-1999.96,0.000357,120]
[424297189,1780755070000,-150.0,0.00035785,30]
[424297188,1780755070000,-7852.6351,0.00035781,2]
[424297185,1780755070000,-157.67485886,0.0003575,120]
[424297179,1780755070000,-150.0,0.000357,120]
[424297159,1780755070000,-269.157051,0.00035616,2]
[424297168,1780755070000,-699.0,0.00035681,11]
[424297150,1780755070000,-1000.0,0.00035616,120]
[424297143,1780755070000,-400.0017512,0.00035616,30]
[424297156,1780755070000,-269.157051,0.00035616,2]
[424297187,1780755070000,-2068.8436,0.00035781,2]
[424297133,1780755070000,-151.0,0.0003561,7]
[424297136,1780755070000,-152.350853,0.0003561,7]
[424297130,1780755070000,-2532.201305,0.0003561,7]
[424297134,1780755070000,-152.350853,0.0003561,7]
[424297135,1780755070000,-152.350853,0.0003561,7]
[424297132,1780755070000,-151.0,0.0003561,7]
[424297131,1780755070000,-151.0,0.0003561,7]
[424297148,1780755070000,-1000.0,0.00035616,120]
[424297138,1780755070000,-4236.104918,0.0003561,7]
[424297137,1780755070000,-152.350853,0.0003561,7]
[424297155,1780755070000,-269.157051,0.00035616,2]
[424297141,1780755070000,-4236.104918,0.0003561,7]
[424297144,1780755070000,-2000.0,0.00035616,30]
[424297142,1780755070000,-150.0,0.00035616,120]
[424297140,1780755070000,-4236.104918,0.0003561,7]
[424297145,1780755070000,-1000.0,0.00035616,120]
[424297146,1780755070000,-1000.0,0.00035616,120]
[424297147,1780755070000,-1000.0,0.00035616,120]
[424297152,1780755070000,-3988.0,0.00035616,120]
[424297154,1780755070000,-1005.02,0.00035616,2]
[424297149,1780755070000,-500.0,0.00035616,120]
[424297153,1780755070000,-200.74,0.00035616,30]
[424297151,1780755070000,-4363.0,0.00035616,120]
[424297139,1780755070000,-4236.104918,0.0003561,7]
[424297190,1780755070000,-151.0,0.00035814,30]
[424297171,1780755070000,-1102.74,0.00035685,120]
[424297180,1780755070000,-202.0,0.00035701,5]
[424297215,1780755070000,-151.0,0.00035838,30]
[424297213,1780755070000,-269.157051,0.00035838,2]
[424297218,1780755070000,-192.967881,0.00035838,30]
[424297225,1780755070000,-1323.30755,0.00035838,30]
[424297226,1780755070000,-1323.30755,0.00035838,30]
[424297227,1780755070000,-1323.30755,0.00035838,30]
[424297220,1780755070000,-433.109753,0.00035838,30]
[424297228,1780755070000,-2129.55451,0.00035838,30]
[424297222,1780755070000,-433.109753,0.00035838,30]
[424297224,1780755070000,-1323.30755,0.00035838,30]
[424297219,1780755070000,-192.967881,0.00035838,30]
[424297223,1780755070000,-433.109753,0.00035838,30]
[424297217,1780755070000,-192.967881,0.00035838,30]
[424297221,1780755070000,-433.109753,0.00035838,30]
[424297230,1780755070000,-2129.55451,0.00035838,30]
[424297229,1780755070000,-2129.55451,0.00035838,30]
[424297232,1780755070000,-342.548366,0.00035838,30]
[424297233,1780755070000,-151.0,0.00035838,30]
[424297234,1780755070000,-342.548366,0.00035838,30]
[424297231,1780755070000,-2129.55451,0.00035838,30]
[424297235,1780755070000,-151.0,0.00035838,30]
[424297237,1780755070000,-151.0,0.00035838,30]
[424297238,1780755070000,-342.548366,0.00035838,30]
[424297239,1780755070000,-43204.56782416,0.00035844,10]